{"text_format":"1","workbook":"xlsx","n_sheets":7,"sheets":["Yurtdışı","Yurtiçi","Kıbrıs","Data","Notlar","Dilim","Şerif"],"not_rendered":{"charts":0,"images":0,"macros":1,"external_links":0,"defined_names":4,"comments":1,"pivot_tables":0},"unopened":[],"bounds":{"document_bytes":16777216,"sheet_cells":100000,"rows_first":2000,"rows_last":500,"rows_between":2000,"halvings":0,"cell_chars":16384,"cell_head_chars":4096},"cells_cut":0,"cells_raw":0,"read":"whole","date_system":"1900"}

{"sheet":"Yurtdışı","index":0,"n_rows":30,"n_cols":4,"rows_kept":30,"cut":false,"hidden":false,"merged":[[1,2,1,4],[29,2,29,4]]}
[]
[null,null,"Yurtdışı Seyahat Harcırahı"]
[]
[null,null,"Parametreler"]
[null,null,"Seyahat edenin ismini yazınız"]
[null,null,"Seyahat edilen ülkeyi seçiniz"]
[null,null,"Brüt ücret aralığını (asgari/azami) seçiniz"]
[null,null,"Seyahatin başlangıç tarihi yazınız (yolculuklar dahil) "]
[null,null,"Seyahatin bitiş tarihi yazınız (yolculuklar dahil) "]
[null,null,"İlk 10 gün için Konaklama Gider Farkı Hesaplansın mı ?"]
[null,null,"Gerçek (faturalı) konaklama giderleri toplamını yazınız"]
[null,null,"Seyahatin Bittiği Tarihteki DÖVİZ SATIŞ Kurunu yazınız"]
[null,null,"İlk 10 gün için Harcırah %50 Artırımlı Uygulansın mı ?"]
[]
[]
[null,null,"Hesaplanan Harcırah"]
[null,null,"Seyahat süresi (gün)"]
[null,null,"Bir günlük harcırah (yol ücreti hariç)"]
[null,null,"Toplam Çıplak Harcırah Tutarı (Yemek ve Konaklama Giderleri Karşılığı)"]
[null,null,"İlk 10 Gün İçin % 50 Fazla Harcırah farkı"]
[null,null,"İlk 10 Gün İçin Konaklama Gider Farkı"]
[null,null,"Yemek ve Konaklama İçin Ödenebilecek Max. Harcırah Tutarı"]
[null,null,"Brüt Harcırahın TL Karşılığı"]
[null,null,"Damga Vergisi Kesintisi",7.5900000000000004E-3]
[null,null,"Net Harcırahın TL Karşılığı","TL"]
[]
[null,null,"nin imzası"]
[]
[]
[null,null,"Uyarı: Hesapladığınız bu harcırah sadece yemek ve konaklama giderleri karşılığı içindir. Gerçek yol giderlerini (uçak, otobüs, taksi vb) fatura karşılığı ayrıca ödeyebilirsiniz."]

{"sheet":"Yurtiçi","index":1,"n_rows":30,"n_cols":5,"rows_kept":30,"cut":false,"hidden":false,"merged":[[1,2,1,4],[29,2,29,4]]}
[]
[null,null,"Yurtiçi Seyahat Harcırahı"]
[]
[null,null,"Parametreler"]
[null,null,"Seyahat edenin ismini yazınız"]
[null,null,"Seyahat edilen şehri seçiniz",null,1]
[null,null,"Brüt ücret aralığı (asgari/azami) seçiniz",null,1]
[null,null,"Seyahatin başlangıç tarihi yazınız (yolculuklar dahil) "]
[null,null,"Seyahatin bitiş tarihi yazınız (yolculuklar dahil) "]
[]
[]
[]
[]
[]
[]
[null,null,"Hesaplanan Harcırah"]
[null,null,"Seyahat süresi (gün)"]
[null,null,"Bir günlük harcırah (yol ücreti hariç)"]
[null,null,"Toplam Çıplak Harcırah Tutarı (Yemek ve Konaklama Giderleri Karşılığı)"]
[]
[]
[]
[]
[null,null,"Damga Vergisi Kesintisi",7.5900000000000004E-3]
[null,null,"Net Harcırah Tutarı","TL"]
[]
[null,null,"İrfan Sarıkaya'nin imzası"]
[]
[]
[null,null,"Uyarı: Hesapladığınız bu harcırah sadece yemek ve konaklama giderleri karşılığı içindir. Gerçek yol giderlerini (uçak, otobüs, taksi vb) fatura karşılığı ayrıca ödeyebilirsiniz."]

{"sheet":"Kıbrıs","index":2,"n_rows":30,"n_cols":4,"rows_kept":30,"cut":false,"hidden":false,"merged":[[1,2,1,4],[29,2,29,4]]}
[]
[null,null,"Kuzey Kıbrıs Seyahat Harcırahı"]
[]
[null,null,"Parametreler"]
[null,null,"Seyahat edenin ismini yazınız"]
[null,null,"Seyahat edilen yer"]
[null,null,"Brüt ücret aralığı (asgari/azami) seçiniz"]
[null,null,"Seyahatin başlangıç tarihi yazınız (yolculuklar dahil) "]
[null,null,"Seyahatin bitiş tarihi yazınız (yolculuklar dahil) "]
[]
[]
[]
[]
[]
[]
[null,null,"Hesaplanan Harcırah"]
[null,null,"Seyahat süresi (gün)"]
[null,null,"Bir günlük harcırah (yol ücreti hariç)"]
[null,null,"Toplam Çıplak Harcırah Tutarı (Yemek ve Konaklama Giderleri Karşılığı)"]
[]
[]
[]
[]
[null,null,"Damga Vergisi Kesintisi",7.5900000000000004E-3]
[null,null,"Net Harcırah Tutarı","TL"]
[]
[null,null,"nin imzası"]
[]
[]
[null,null,"Uyarı: Hesapladığınız bu harcırah sadece yemek ve konaklama giderleri karşılığı içindir. Gerçek yol giderlerini (uçak, otobüs, taksi vb) fatura karşılığı ayrıca ödeyebilirsiniz."]

{"sheet":"Data","index":3,"n_rows":201,"n_cols":16,"rows_kept":201,"cut":false,"hidden":false,"merged":[[7,14,7,15],[53,5,53,6],[77,5,77,6]]}
[]
[]
[]
[]
[null,null,null,"YurtDIŞI Harcırah ( Yemek ve Konaklama için) Miktarları ve Dilimleri"]
[]
[]
[null,null,null,"Sıra","ÜLKELER "," PARA BİRİMLERİ","II SÜTUN","III SÜTUN","V SÜTUN","VI SÜTUN","VII SÜTUN",null,"Sıra","Geç. Tarihi","2024-07-01"]
[null,null,null,1,"A.B.D.                   ","USD",182,146,117,110,93,null,"No","Denk Geldiği Sütun","En Alt","En Üst"]
[null,null,null,2,"Almanya                        ","EURO",164,131,105,99,83,null,1,"II",22832.79,999999]
[null,null,null,3,"Avustralya ","Avustralya Doları",283,227,181,171,143,null,2,"III",22669.399999999998,22832.780000000002]
[null,null,null,4,"Avusturya ","EURO",166,132,106,100,84,null,3,"IV",19244.27,22669.39]
[null,null,null,5,"Belçika","EURO",161,128,103,97,81,null,4,"V",15039.359999999999,19244.260000000002]
[null,null,null,6,"Danimarka       ","Danimarka Kronu",1238,988,791,746,627,null,5,"VI",1,15039.349999999999]
[null,null,null,7,"Finlandiya","EURO",148,119,95,90,74]
[null,null,null,8,"Fransa","EURO",160,127,102,96,81]
[null,null,null,9,"Hollanda","EURO",156,125,100,94,80,null,"Kaynaklar"]
[null,null,null,10,"İngiltere                   ","Sterlin",115,91,74,69,59]
[null,null,null,11,"İrlanda","EURO",155,124,99,94,78,null,"Harcırah Miktarları : ",null,"10 Ocak 2022 tarihli Resmi Gazetede yayımlanan 6656 sayılı CBK"]
[null,null,null,12,"İspanya","EURO",158,126,101,95,80]
[null,null,null,13,"İsveç","İsveç Kronu",1359,1085,867,819,687]
[null,null,null,14,"İsviçre                  ","İsviçre Frangı",283,226,181,171,143,null,"Dilimler",null,"5 Ocak 2024 tarihli Hazine ve Maliye Bakanlığı Kamu Mali Yönetim ve Dönüşüm GM Genelgesinde"]
[null,null,null,15,"İtalya","EURO",152,122,98,92,77,null,null,null,"5  Temmuz 2024 tarihli Hazine ve Maliye Bakanlığı Kamu Mali Yönetim ve Dönüşüm GM Genelgesinde"]
[null,null,null,16,"Japonya","Japon Yeni",31405,25127,20118,18901,15914]
[null,null,null,17,"Kanada","Kanada Doları",244,195,156,147,125]
[null,null,null,18,"Kuveyt ","Kuveyt Dinarı",50,40,33,31,25]
[null,null,null,19,"Lüksemburg","EURO",161,128,103,97,82,null,"Artırımlı Harcırah Uygulaması"]
[null,null,null,20,"Norveç ","Norveç Kronu",1193,952,762,719,604,null,"Evet"]
[null,null,null,21,"Portekiz                          ","EURO",155,124,99,93,78,null,"Hayır"]
[null,null,null,22,"Suudi Arabistan      ","Suudi A. Riyali",617,492,395,372,313]
[null,null,null,23,"Yunanistan","EURO",158,126,101,95,80,null,"Konaklama Gider Farkı Ödemesi"]
[null,null,null,24,"Diğer AB Ülkeleri         ","EURO",127,101,81,76,65,null,"Evet"]
[null,null,null,25,"Diğer Ülkeler         ","ABD Doları",157,125,100,95,80,null,"Hayır"]
[]
[]
[]
[]
[]
[]
[]
[]
[]
[]
[]
[]
[]
[]
[]
[]
[]
[null,null,"YurtİÇİ Harcırah (Yemek ve Konaklama için) Miktarları ve Dilimleri"]
[]
[null,null,null,null,null,null,null,2024]
[null,null,null,null,"Geç. Tarihi","2024-07-01",null,"Harcırah",null,null,null,null,"Kaynaklar"]
[null,null,null,null,"Dereceler","En Alt","En Üst","TL"]
[null,null,null,null,1,22832.79,999999,480,null,null,null,null,"Harcırah Miktarları : ",null,"7489 sayılı 2023 Yılı Kesin Bütçe Kanunu H çetveli"]
[null,null,null,null,2,22669.399999999998,22832.780000000002,465]
[null,null,null,null,3,20672.239999999998,22669.39,435]
[null,null,null,null,4,19038.2,20672.23,420,null,null,null,null,"Dilimler",null,"5 Ocak 2024 tarihli Hazine ve Maliye Bakanlığı Kamu Mali Yönetim ve Dönüşüm GM Genelgesinde"]
[null,null,null,null,5,15039.359999999999,19038.190000000002,405,null,null,null,null,null,null,"5 Temmuz 2024 tarihli Hazine ve Maliye Bakanlığı Kamu Mali Yönetim ve Dönüşüm GM Genelgesinde"]
[null,null,null,null,6,1,15039.349999999999,400]
[]
[]
[]
[]
[]
[]
[]
[]
[]
[]
[]
[]
[]
[null,null,"Kuzey Kıbrıs Harcırah ( Yemek ve Konaklama için) Miktarları ve Dilimleri"]
[]
[null,null,null,null,null,null,null,2023]
[null,null,null,null,"Geç. Tarihi","2024-07-01",null,"Harcırah",null,null,null,null,"Kaynaklar"]
[null,null,null,null,"Dereceler","En Alt","En Üst","TL"]
[null,null,null,null,1,22832.79,999999,557,null,null,null,null,"Harcırah Miktarları : ",null,"10 Ocak 2023 tarihli Resmi Gazetede yayımlanan 6656 sayılı CBK"]
[null,null,null,null,2,22669.399999999998,22832.780000000002,490]
[null,null,null,null,3,19244.27,22669.39,424]
[null,null,null,null,4,15039.359999999999,19244.260000000002,357,null,null,null,null,"Dilimler",null,"5 Ocak 2024 tarihli Hazine ve Maliye Bakanlığı Kamu Mali Yönetim ve Dönüşüm GM Genelgesinde"]
[null,null,null,null,5,1,15039.349999999999,290,null,null,null,null,null,null,"5 Temmuz 2024 tarihli Hazine ve Maliye Bakanlığı Kamu Mali Yönetim ve Dönüşüm GM Genelgesinde"]
[]
[]
[]
[]
[]
[]
[]
[]
[]
[]
[]
[]
[]
[]
[]
[]
[]
[]
[]
[]
[]
[]
[]
[]
[]
[]
[]
[]
[]
[]
[null,null,null,null,null,null,null,null,null,null,null,109.1]
[]
[]
[]
[]
[]
[null,null,null,"Adana ",null,"Kuzey Kıbrıs"]
[null,null,null,"Adiyaman"]
[null,null,null,"Afyonkarahisar"]
[null,null,null,"Ağri "]
[null,null,null,"Aksaray"]
[null,null,null,"Amasya "]
[null,null,null,"Ankara"]
[null,null,null,"Antalya "]
[null,null,null,"Ardahan "]
[null,null,null,"Artvin"]
[null,null,null,"Aydin "]
[null,null,null,"Balikesir"]
[null,null,null,"Bartin "]
[null,null,null,"Batman "]
[null,null,null,"Bayburt "]
[null,null,null,"Bilecik"]
[null,null,null,"Bingöl"]
[null,null,null,"Bitlis"]
[null,null,null,"Bolu"]
[null,null,null,"Burdur "]
[null,null,null," Bursa"]
[null,null,null,"Çanakkale"]
[null,null,null,"Çankiri"]
[null,null,null,"Çorum "]
[null,null,null,"Denizli"]
[null,null,null,"Diyarbakir "]
[null,null,null,"Edirne "]
[null,null,null,"Elaziğ "]
[null,null,null,"Erzincan"]
[null,null,null,"Erzurum "]
[null,null,null,"Eskişehir "]
[null,null,null,"Gaziantep"]
[null,null,null,"Giresun "]
[null,null,null,"Gümüşhane"]
[null,null,null,"Hakkari"]
[null,null,null,"Hatay "]
[null,null,null,"İğdir"]
[null,null,null,"İsparta "]
[null,null,null,"İstanbul"]
[null,null,null,"İzmir "]
[null,null,null,"Kahramanmaraş "]
[null,null,null,"Karabük"]
[null,null,null,"Karaman"]
[null,null,null,"Kars  "]
[null,null,null,"Kastamonu "]
[null,null,null,"Kayseri "]
[null,null,null,"Kirikkale "]
[null,null,null,"Kirklareli "]
[null,null,null,"Kirşehir "]
[null,null,null,"Kilis "]
[null,null,null,"Kocaeli  "]
[null,null,null,"Konya"]
[null,null,null,"Kütahya"]
[null,null,null,"Malatya "]
[null,null,null,"Manisa"]
[null,null,null,"Mardin"]
[null,null,null,"Mersin "]
[null,null,null,"Muğla  "]
[null,null,null,"Muş"]
[null,null,null,"Nevşehir"]
[null,null,null,"Niğde  "]
[null,null,null,"Ordu "]
[null,null,null,"Osmaniye "]
[null,null,null,"Rize"]
[null,null,null,"Sakarya "]
[null,null,null,"Samsun"]
[null,null,null,"Siirt "]
[null,null,null,"Sinop"]
[null,null,null,"Sivas "]
[null,null,null,"Şanliurfa "]
[null,null,null,"Şirnak "]
[null,null,null,"Tekirdağ  "]
[null,null,null,"Tokat"]
[null,null,null,"Trabzon"]
[null,null,null,"Tunceli "]
[null,null,null,"Uşak "]
[null,null,null,"Van "]
[null,null,null,"Yalova  "]
[null,null,null,"Yozgat "]
[null,null,null,"Zonguldak "]
[null,null,null,"Birden fazla şehir"]

{"sheet":"Notlar","index":4,"n_rows":106,"n_cols":4,"rows_kept":106,"cut":false,"hidden":true,"merged":[[16,1,16,11],[6,1,6,11],[8,1,8,11],[10,1,10,11],[12,1,12,11],[14,1,14,11],[27,1,27,11],[18,1,18,11],[22,1,22,11],[23,1,23,11],[24,1,24,11],[25,1,25,11],[26,1,26,11]]}
[]
[null,"    YEMEK VE KONAKLAMA KARŞILIĞI ÖDENECEK GÖTÜRÜ HARCIRAH"]
[null,null,null,"< YOL GİDERLERİ AYRICA, ANCAK BELGEYE DAYANARAK ÖDENİR>"]
[]
[null,"YURTDIŞI HARCIRAH "]
[]
[null,"1-Sadece VERİ bölümündeki SARI desenli alanlara gerekli bilgileri giriniz. Bu alanlar dışında herhangibir alana veri girişi yapmayınız."]
[]
[null,"2-Seyahate gidilen ülkeyi KUTUCUKTAN seçiniz. Seçilen ülke için geçerli döviz cinsi OTOMATİK olarak gelecektir."]
[]
[null,"3-Seyahate giden kişinin en son brüt ücret aralığını kutucuktan seciniz, ücret aralığı değerlerinden birisini seçtiğinizde, diğeri OTOMATİK olarak gelecektir. Örneğin brüt ücreti 1.000  YTL olan personel 972,29 - 1.078,65 YTL ücret aralığında bulunuyor demektir. Bunun için 972,29 TL yi kuçuktan seçtiğinizde 1.078,65 YTL otomatik olarak gelecektir."]
[]
[null,"4-Seyahat edene, ilk 10 gün için KONAKLAMA-YİYECEK harcırahının % 50 oranında fazla harcırah verilebilir. Şayet % 50 daha fazla harcırah uygulaması yapmak istiyorsanız kutucukda  ( EVET ) , yapmak istemiyorsanız ( HAYIR ) seçiniz."]
[]
[null,"5-Seyahat edenin, ilk 10 gün için ibraz ettiği KONAKLAMA faturasında yer alan tutar, Konaklama-Yiyecek için hesaplanan harcırahın % 40 dan fazla ise, bu durumda % 40 dan fazla olan kısmın % 70 i personele ayrıca ödenebilir. Bu ödemeyi yapmak istiyorsanız ilgili kutucukda  ( EVET ) , yapmak istemiyorsanız ( HAYIR ) seçiniz. Ancak ek olarak ödenecek bu tutar, vergiden istisna gündelik tutarının; aylık seviyesi 1 ve 2 sıralarda (I-III kademelerde) olanlar  için % 100’ünden, diğerleri için %70’inden fazla olamaz."]
[]
[null,"6- Harcırahın YTL karşılığını hesaplamak için ilgili kutucuğa SEYAHATİN BİTTİĞİ TARİHTEKİ TC MB DÖVİZ SATIŞ KURUNU yazınız."]
[]
[null,"7- SARI desenli alanlara gerekli veriler girildiğinde ve kutucuklardan gerekli seçimler yapıldığında, personele YEMEK ve KONAKLAMA giderleri karşılığı olarak  ücret olarak gelir vergisine tabi tutulmaksızın verilebilecek azami  harcırah otomatik olarak hesaplanmış olacaktır. Hesaplamalar iki ana prensibe dayanmaktadır. Yol masrafları (Uçak, Gemi, Otobüs gibi)  için götürü harcırah verilmez.Bunların faturası var ise , faturaya dayanılarak gider yazılabilir.Yol masraflarının faturası yok ise bunlar için götürü harcırah verilemez."]
[]
[null,"YURT DIŞI VE YURT İÇİ HARCIRAH ÖDEMESİNDE DİKKAT EDİLECEK HUSUSLAR"]
[]
[null,"Gelir vergisinden istisna edilen gündelik uygulamasında aşağıdaki hususlara dikkat edilmelidir:"]
[null,"1)  Aylık ücret tutarlarına göre belirlenen gündelik tutarının vergiden istisna edilen tutarı aşmadığı hallerde bu ödemelerden sadece damga vergisi kesintisi yapılacaktır. İstisna tutarı aşan gündelik ödendiği durumda aşan kısım, ücretlinin içinde bulunduğu gelir dilimine karşılık gelen vergi oranı ve damga vergisi dikkate alınarak brütleştirilmek suretiyle gelir vergisi kesintisine tabi tutulacaktır."]
[null,"2) Yurt dışı gündeliklerin TL cinsinden tahakkuku, yabancı paranın T.C. Merkez Bankasınca ilan edilen döviz satış kuru esas alınarak yapılmalıdır."]
[null,"3) Yurt dışı seyahatin ilk 10 günü için vergiden istisna gündelik tutarı %50 zamlı olarak hesaplanabilir."]
[null,"4) Birden fazla ülkeyi kapsayan seyahatlerde, her ülke için ilgili olduğu gündelik tutarı kalış süresiyle orantılı olarak dikkate alınmalıdır."]
[null,"5) Gündelik verilen personelin yurt içi ve yurt dışı seyahati ile ilgili yemek ve konaklama giderleri ayrıca belge karşılığında kendisine ödeniyor ve bu belgeler gider veya maliyet olarak dikkate alınıyorsa, ödenen gündelik tutarının tamamının brütleştirilerek ücret olarak vergilendirilmesi gerekir."]
[]
[]
[]
[]
[]
[]
[]
[]
[]
[]
[]
[]
[]
[]
[]
[]
[]
[]
[]
[]
[]
[]
[]
[]
[]
[]
[]
[]
[]
[]
[]
[]
[]
[]
[]
[]
[]
[]
[]
[]
[]
[]
[]
[]
[]
[]
[]
[]
[]
[]
[]
[]
[]
[]
[]
[]
[]
[]
[]
[]
[]
[]
[]
[]
[]
[]
[]
[]
[]
[]
[]
[]
[]
[]
[]
[null,null,"  "]
[]
[null,null," "]

{"sheet":"Dilim","index":5,"n_rows":78,"n_cols":17,"rows_kept":78,"cut":false,"hidden":true,"merged":[[71,15,71,16],[8,8,8,16],[12,15,12,16],[24,15,24,16],[37,15,37,16],[48,15,48,16],[60,15,60,16]]}
[]
[null,null,"Bilgisayar Tarihi",null,"2024-07-07"]
[]
[]
[]
[null,null,null,null,null,"2024-01-01","2024-07-01",null,"5 Ocak 2024 tarihli Hazine ve Maliye Bakanlığı Kamu Mali Yönetim ve Dönüşüm GM Genelgesinde"]
[null,null,"MEMUR GÖSTERGE AYLIĞI KATSAYISI",null,null,0.76087099999999996,"0,907796"]
[null,null,"TABAN AYLIĞI KATSAYISI",null,null,11.909083000000001,14.208727]
[]
[null,null,"YurtİÇİ Harcırah Dilimleri ( Ocak-Haziran 2024 Dönemi İçin)"]
[]
[]
[null,null,null,null,"MEMUR TABAN AYLIĞI",null,null,"MEMUR GÖSTERGE AYLIĞI",null,null,null,null,"TOPLAM",null,"Geç. Tarihi",{"$f":"+F6","v":"2024-01-01"}]
[null,null,"MEMUR DERECELERİ","EMSAL MEMUR KADROSU","TABAN AYLIĞI GÖSTERGESİ (SABİT)","TABAN AYLIĞI KATSAYISI","TABAN AYLIĞI","D.M GÖSTERGE (SABİT)","D.M. EK GÖSTERGE","TOPLAM GÖSTERGE","GÖSTERGE AYLIĞI KATSAYISI","GÖSTERGE AYLIĞI","BRÜT AYLIK",null,"Dereceler","En Alt","En Üst"]
[null,null,"1.Derece","Başbakanlık Müsteşarı",1000,{"$f":"$F$8","v":11.909083000000001},null,1500,null,null,null,null,{"$f":"+M16+0.01","v":19137.349999999999},null,1,{"$f":"+M16+0.01","v":19137.349999999999},999999]
[null,null,"1.Derece","8000 Ve Daha Yüksek Ek Göstergeli Kadrolar",1000,{"$f":"$F$8","v":11.909083000000001},{"$f":"FIXED(E16*F16,2,TRUE)","v":"11909,08"},1500,8000,{"$f":"H16+I16","v":9500},{"$f":"$F$7","v":0.76087099999999996},{"$f":"FIXED(J16*K16,2,TRUE)","v":"7228,27"},{"$f":"G16+L16-0.01","v":19137.34},null,2,{"$f":"+M17+0.01","v":19000.41},{"$f":"+M16","v":19137.34}]
[null,null,"1.Derece","5800-8.000 (hariç) Ek Göstergeli Kadrolar",1000,{"$f":"$F$8","v":11.909083000000001},{"$f":"FIXED(E17*F17,2,TRUE)","v":"11909,08"},1500,7820,{"$f":"H17+I17","v":9320},{"$f":"$F$7","v":0.76087099999999996},{"$f":"FIXED(J17*K17,2,TRUE)","v":"7091,32"},{"$f":"G17+L17","v":19000.400000000001},null,3,{"$f":"+M18+0.01","v":17326.48},{"$f":"+M17","v":19000.400000000001}]
[null,null,"1.Derece","3000 - 5800 (hariç) Ek Göstergeli Kadrolar",1000,11.909083000000001,{"$f":"FIXED(E18*F18,2,TRUE)","v":"11909,08"},1500,5620,{"$f":"H18+I18","v":7120},{"$f":"$F$7","v":0.76087099999999996},{"$f":"FIXED(J18*K18,2,TRUE)","v":"5417,40"},{"$f":"G18+L18-0.01","v":17326.47},null,4,{"$f":"+M19+0.01","v":15956.91},{"$f":"+M18","v":17326.47}]
[null,null,"1-4 Derece","1-4 Dereceli Kadrolar",1000,11.909083000000001,{"$f":"FIXED(E19*F19,2,TRUE)","v":"11909,08"},1500,3820,{"$f":"H19+I19","v":5320},{"$f":"$F$7","v":0.76087099999999996},{"$f":"FIXED(J19*K19,2,TRUE)","v":"4047,83"},{"$f":"G19+L19-0.01","v":15956.9},null,5,{"$f":"+M20+0.01","v":12605.28},{"$f":"+M19","v":15956.9}]
[null,null,"5-15 Derece","5-15 Dereceli Kadrolar",1000,11.909083000000001,{"$f":"FIXED(E20*F20,2,TRUE)","v":"11909,08"},915,0,{"$f":"H20+I20","v":915},{"$f":"$F$7","v":0.76087099999999996},{"$f":"FIXED(J20*K20,2,TRUE)","v":"696,20"},{"$f":"G20+L20-0.01","v":12605.27},null,6,1,{"$f":"+M20","v":12605.27}]
[]
[null,null,"YurtİÇİ Harcırah Dilimleri ( Temmuz-Aralık 2024 Dönemi İçin)"]
[]
[]
[null,null,null,null,"MEMUR TABAN AYLIĞI",null,null,"MEMUR GÖSTERGE AYLIĞI",null,null,null,null,"TOPLAM",null,"Geç. Tarihi",{"$f":"+G6","v":"2024-07-01"}]
[null,null,"MEMUR DERECELERİ","EMSAL MEMUR KADROSU","TABAN AYLIĞI GÖSTERGESİ (SABİT)","TABAN AYLIĞI KATSAYISI","TABAN AYLIĞI","D.M GÖSTERGE (SABİT)","D.M. EK GÖSTERGE","TOPLAM GÖSTERGE","GÖSTERGE AYLIĞI KATSAYISI","GÖSTERGE AYLIĞI","BRÜT AYLIK",null,"Dereceler","En Alt","En Üst"]
[null,null,"1.Derece","Başbakanlık Müsteşarı",1000,{"$f":"$G$8","v":14.208727},null,1500,null,null,null,null,{"$f":"+M28+0.01","v":22832.79},null,1,{"$f":"+M28+0.01","v":22832.79},999999]
[null,null,"1.Derece","8000 Ek Göstergeli Kadrolar",1000,14.208727,{"$f":"FIXED(E28*F28,2,TRUE)","v":"14208,73"},1500,8000,{"$f":"H28+I28","v":9500},{"$f":"$G$7","v":"0,907796"},{"$f":"FIXED(J28*K28,2,TRUE)","v":"8624,06"},{"$f":"G28+L28-0.01","v":22832.780000000002},null,2,{"$f":"+M29+0.01","v":22669.399999999998},{"$f":"+M28","v":22832.780000000002}]
[null,null,"1.Derece","5800+ Ek Göstergeli Kadrolar",1000,14.208727,{"$f":"FIXED(E29*F29,2,TRUE)","v":"14208,73"},1500,7820,{"$f":"H29+I29","v":9320},{"$f":"$G$7","v":"0,907796"},{"$f":"FIXED(J29*K29,2,TRUE)","v":"8460,66"},{"$f":"G29+L29","v":22669.39},null,3,{"$f":"+M30+0.01","v":20672.239999999998},{"$f":"+M29","v":22669.39}]
[null,null,"1.Derece","5300 Ek Göstergeli Kadrolar",1000,14.208727,{"$f":"FIXED(E30*F30,2,TRUE)","v":"14208,73"},1500,5620,{"$f":"H30+I30","v":7120},{"$f":"$G$7","v":"0,907796"},{"$f":"FIXED(J30*K30,2,TRUE)","v":"6463,51"},{"$f":"G30+L30-0.01","v":20672.23},null,4,{"$f":"+M31+0.01","v":19038.2},{"$f":"+M30","v":20672.23}]
[null,null,"1-4 Derece","1-4 Dereceli Kadrolar",1000,14.208727,{"$f":"FIXED(E31*F31,2,TRUE)","v":"14208,73"},1500,3820,{"$f":"H31+I31","v":5320},{"$f":"$G$7","v":"0,907796"},{"$f":"FIXED(J31*K31,2,TRUE)","v":"4829,47"},{"$f":"G31+L31-0.01","v":19038.190000000002},null,5,{"$f":"+M32+0.01","v":15039.359999999999},{"$f":"+M31","v":19038.190000000002}]
[null,null,"5-15 Derece","5-15 Dereceli Kadrolar",1000,14.208727,{"$f":"FIXED(E32*F32,2,TRUE)","v":"14208,73"},915,0,{"$f":"H32+I32","v":915},{"$f":"$G$7","v":"0,907796"},{"$f":"FIXED(J32*K32,2,TRUE)","v":"830,63"},{"$f":"G32+L32-0.01","v":15039.349999999999},null,6,1,{"$f":"+M32","v":15039.349999999999}]
[]
[]
[null,null,"YurtDIŞI Harcırah Dilimleri ( Ocak-Haziran 2024 Dönemi İçin)"]
[]
[]
[null,null,null,null,"MEMUR TABAN AYLIĞI",null,null,"MEMUR GÖSTERGE AYLIĞI",null,null,null,null,"TOPLAM",null,"Geç. Tarihi",{"$f":"+F6","v":"2024-01-01"}]
[null,null,"MEMUR DERECELERİ","EMSAL MEMUR KADROSU","TABAN AYLIĞI GÖSTERGESİ (SABİT)","TABAN AYLIĞI KATSAYISI","TABAN AYLIĞI","D.M GÖSTERGE (SABİT)","D.M. EK GÖSTERGE","TOPLAM GÖSTERGE","GÖSTERGE AYLIĞI KATSAYISI","GÖSTERGE AYLIĞI","BRÜT AYLIK",null,"Denk Geldiği Sütun","En Alt","En Üst"]
[null,null,"1.Derece","Başbakanlık Müsteşarı",1000,{"$f":"$F$8","v":11.909083000000001},null,1500,null,null,null,null,{"$f":"+M41+0.01","v":19137.349999999999},null,"II",{"$f":"+M41+0.01","v":19137.349999999999},999999]
[null,null,"1.Derece","8000 Ek Göstergeli Kadrolar",1000,{"$f":"$F$8","v":11.909083000000001},{"$f":"FIXED(E41*F41,2,TRUE)","v":"11909,08"},1500,8000,{"$f":"H41+I41","v":9500},{"$f":"$F$7","v":0.76087099999999996},{"$f":"FIXED(J41*K41,2,TRUE)","v":"7228,27"},{"$f":"G41+L41-0.01","v":19137.34},null,"III",{"$f":"+M42+0.01","v":19000.41},{"$f":"+M41","v":19137.34}]
[null,null,"1.Derece","5300+ Ek Göstergeli Kadrolar",1000,{"$f":"$F$8","v":11.909083000000001},{"$f":"FIXED(E42*F42,2,TRUE)","v":"11909,08"},1500,7820,{"$f":"H42+I42","v":9320},{"$f":"$F$7","v":0.76087099999999996},{"$f":"FIXED(J42*K42,2,TRUE)","v":"7091,32"},{"$f":"G42+L42","v":19000.400000000001},null,"IV",{"$f":"+M43+0.01","v":16946.05},{"$f":"+M42","v":19000.400000000001}]
[null,null,"1.Derece","5300 Ek Göstergeli Kadrolar",1000,{"$f":"$F$8","v":11.909083000000001},{"$f":"FIXED(E43*F43,2,TRUE)","v":"11909,08"},1500,5120,{"$f":"H43+I43","v":6620},{"$f":"$F$7","v":0.76087099999999996},{"$f":"FIXED(J43*K43,2,TRUE)","v":"5036,97"},{"$f":"G43+L43-0.01","v":16946.04},null,"V",{"$f":"+Q44+0.01","v":12605.28},{"$f":"+M43","v":16946.04}]
[null,null,"5-15 Derece","5-15 Dereceli Kadrolar",1000,{"$f":"$F$8","v":11.909083000000001},{"$f":"FIXED(E44*F44,2,TRUE)","v":"11909,08"},915,0,{"$f":"H44+I44","v":915},{"$f":"$F$7","v":0.76087099999999996},{"$f":"FIXED(J44*K44,2,TRUE)","v":"696,20"},{"$f":"G44+L44-0.01","v":12605.27},null,"VI",1,{"$f":"+M44","v":12605.27}]
[]
[null,null,"YurtDIŞI Harcırah Dilimleri ( Temmuz-Aralık 2024 Dönemi İçin)"]
[]
[]
[null,null,null,null,"MEMUR TABAN AYLIĞI",null,null,"MEMUR GÖSTERGE AYLIĞI",null,null,null,null,"TOPLAM",null,"Geç. Tarihi",{"$f":"+G6","v":"2024-07-01"}]
[null,null,"MEMUR DERECELERİ","EMSAL MEMUR KADROSU","TABAN AYLIĞI GÖSTERGESİ (SABİT)","TABAN AYLIĞI KATSAYISI","TABAN AYLIĞI","D.M GÖSTERGE (SABİT)","D.M. EK GÖSTERGE","TOPLAM GÖSTERGE","GÖSTERGE AYLIĞI KATSAYISI","GÖSTERGE AYLIĞI","BRÜT AYLIK",null,"Denk Geldiği Sütun","En Alt","En Üst"]
[null,null,"1.Derece","Başbakanlık Müsteşarı",1000,{"$f":"$G$8","v":14.208727},null,1500,null,null,null,null,{"$f":"+M52+0.01","v":22832.79},null,"II",{"$f":"+M52+0.01","v":22832.79},999999]
[null,null,"1.Derece","8000 Ek Göstergeli Kadrolar",1000,{"$f":"$G$8","v":14.208727},{"$f":"FIXED(E52*F52,2,TRUE)","v":"14208,73"},1500,8000,{"$f":"H52+I52","v":9500},{"$f":"$G$7","v":"0,907796"},{"$f":"FIXED(J52*K52,2,TRUE)","v":"8624,06"},{"$f":"G52+L52-0.01","v":22832.780000000002},null,"III",{"$f":"+M53+0.01","v":22669.399999999998},{"$f":"+M52","v":22832.780000000002}]
[null,null,"1.Derece","5300+ Ek Göstergeli Kadrolar",1000,{"$f":"$G$8","v":14.208727},{"$f":"FIXED(E53*F53,2,TRUE)","v":"14208,73"},1500,7820,{"$f":"H53+I53","v":9320},{"$f":"$G$7","v":"0,907796"},{"$f":"FIXED(J53*K53,2,TRUE)","v":"8460,66"},{"$f":"G53+L53","v":22669.39},null,"IV",{"$f":"+M54+0.01","v":19244.27},{"$f":"+M53","v":22669.39}]
[null,null,"1.Derece","5300 Ek Göstergeli Kadrolar",1000,{"$f":"$G$8","v":14.208727},{"$f":"FIXED(E54*F54,2,TRUE)","v":"14208,73"},1500,4047,{"$f":"H54+I54","v":5547},{"$f":"$G$7","v":"0,907796"},{"$f":"FIXED(J54*K54,2,TRUE)","v":"5035,54"},{"$f":"G54+L54-0.01","v":19244.260000000002},null,"V",{"$f":"+Q55+0.01","v":15039.359999999999},{"$f":"+M54","v":19244.260000000002}]
[null,null,"5-15 Derece","5-15 Dereceli Kadrolar",1000,{"$f":"$G$8","v":14.208727},{"$f":"FIXED(E55*F55,2,TRUE)","v":"14208,73"},915,0,{"$f":"H55+I55","v":915},{"$f":"$G$7","v":"0,907796"},{"$f":"FIXED(J55*K55,2,TRUE)","v":"830,63"},{"$f":"G55+L55-0.01","v":15039.349999999999},null,"VI",1,{"$f":"+M55","v":15039.349999999999}]
[]
[]
[null,null,"KKTC Harcırah Dilimleri ( Ocak-Haziran 2023 Dönemi İçin)"]
[]
[]
[null,null,null,null,"MEMUR TABAN AYLIĞI",null,null,"MEMUR GÖSTERGE AYLIĞI",null,null,null,null,"TOPLAM",null,"Geç. Tarihi",{"$f":"+F6","v":"2024-01-01"}]
[null,null,"MEMUR DERECELERİ","EMSAL MEMUR KADROSU","TABAN AYLIĞI GÖSTERGESİ (SABİT)","TABAN AYLIĞI KATSAYISI","TABAN AYLIĞI","D.M GÖSTERGE (SABİT)","D.M. EK GÖSTERGE","TOPLAM GÖSTERGE","GÖSTERGE AYLIĞI KATSAYISI","GÖSTERGE AYLIĞI","BRÜT AYLIK",null,"Denk Geldiği Sütun","En Alt","En Üst"]
[null,null,"1.Derece","Başbakanlık Müsteşarı",1000,{"$f":"$F$8","v":11.909083000000001},{"$f":"FIXED(E63*F63,2,TRUE)","v":"11909,08"},1500,null,null,null,null,{"$f":"+M64+0.01","v":19137.349999999999},null,"II",{"$f":"+M64+0.01","v":19137.349999999999},999999]
[null,null,"2-4.Derece","8000 Ek Göstergeli Kadrolar",1000,{"$f":"$F$8","v":11.909083000000001},{"$f":"FIXED(E64*F64,2,TRUE)","v":"11909,08"},1500,8000,{"$f":"H64+I64","v":9500},{"$f":"$F$7","v":0.76087099999999996},{"$f":"FIXED(J64*K64,2,TRUE)","v":"7228,27"},{"$f":"G64+L64-0.01","v":19137.34},null,"III",{"$f":"+M65+0.01","v":19000.41},{"$f":"+M64","v":19137.34}]
[null,null,"5-15.Derece","5300+ Ek Göstergeli Kadrolar",1000,{"$f":"$F$8","v":11.909083000000001},{"$f":"FIXED(E65*F65,2,TRUE)","v":"11909,08"},1500,7820,{"$f":"H65+I65","v":9320},{"$f":"$F$7","v":0.76087099999999996},{"$f":"FIXED(J65*K65,2,TRUE)","v":"7091,32"},{"$f":"G65+L65","v":19000.400000000001},null,"IV",{"$f":"+M66+0.01","v":16946.05},{"$f":"+M65","v":19000.400000000001}]
[null,null,"5-15.Derece","5300+ Ek Göstergeli Kadrolar",1000,{"$f":"$F$8","v":11.909083000000001},{"$f":"FIXED(E66*F66,2,TRUE)","v":"11909,08"},1500,5120,{"$f":"H66+I66","v":6620},{"$f":"$F$7","v":0.76087099999999996},{"$f":"FIXED(J66*K66,2,TRUE)","v":"5036,97"},{"$f":"G66+L66-0.01","v":16946.04},null,"V",{"$f":"+Q67+0.01","v":12605.28},{"$f":"+M66","v":16946.04}]
[null,null,"5-15.Derece","5300+ Ek Göstergeli Kadrolar",1000,{"$f":"$F$8","v":11.909083000000001},{"$f":"FIXED(E67*F67,2,TRUE)","v":"11909,08"},915,0,{"$f":"H67+I67","v":915},{"$f":"$F$7","v":0.76087099999999996},{"$f":"FIXED(J67*K67,2,TRUE)","v":"696,20"},{"$f":"G67+L67-0.01","v":12605.27},null,"VI",1,{"$f":"+M67","v":12605.27}]
[]
[null,null,"KKTC Harcırah Dilimleri ( Temmuz-Aralık 2023 Dönemi İçin)"]
[]
[]
[null,null,null,null,"MEMUR TABAN AYLIĞI",null,null,"MEMUR GÖSTERGE AYLIĞI",null,null,null,null,"TOPLAM",null,"Geç. Tarihi",{"$f":"+G6","v":"2024-07-01"}]
[null,null,"MEMUR DERECELERİ","EMSAL MEMUR KADROSU","TABAN AYLIĞI GÖSTERGESİ (SABİT)","TABAN AYLIĞI KATSAYISI","TABAN AYLIĞI","D.M GÖSTERGE (SABİT)","D.M. EK GÖSTERGE","TOPLAM GÖSTERGE","GÖSTERGE AYLIĞI KATSAYISI","GÖSTERGE AYLIĞI","BRÜT AYLIK",null,"Denk Geldiği Sütun","En Alt","En Üst"]
[null,null,"1.Derece","Başbakanlık Müsteşarı",1000,{"$f":"$G$8","v":14.208727},null,1500,null,null,null,null,{"$f":"+M75+0.01","v":22832.79},null,"II",{"$f":"+M75+0.01","v":22832.79},999999]
[null,null,"1.Derece","8000 Ek Göstergeli Kadrolar",1000,{"$f":"$G$8","v":14.208727},{"$f":"FIXED(E75*F75,2,TRUE)","v":"14208,73"},1500,8000,{"$f":"H75+I75","v":9500},{"$f":"$G$7","v":"0,907796"},{"$f":"FIXED(J75*K75,2,TRUE)","v":"8624,06"},{"$f":"G75+L75-0.01","v":22832.780000000002},null,"III",{"$f":"+M76+0.01","v":22669.399999999998},{"$f":"+M75","v":22832.780000000002}]
[null,null,"1.Derece","5300+ Ek Göstergeli Kadrolar",1000,{"$f":"$G$8","v":14.208727},{"$f":"FIXED(E76*F76,2,TRUE)","v":"14208,73"},1500,7820,{"$f":"H76+I76","v":9320},{"$f":"$G$7","v":"0,907796"},{"$f":"FIXED(J76*K76,2,TRUE)","v":"8460,66"},{"$f":"G76+L76","v":22669.39},null,"IV",{"$f":"+M77+0.01","v":19244.27},{"$f":"+M76","v":22669.39}]
[null,null,"1.Derece","5300 Ek Göstergeli Kadrolar",1000,{"$f":"$G$8","v":14.208727},{"$f":"FIXED(E77*F77,2,TRUE)","v":"14208,73"},1500,4047,{"$f":"H77+I77","v":5547},{"$f":"$G$7","v":"0,907796"},{"$f":"FIXED(J77*K77,2,TRUE)","v":"5035,54"},{"$f":"G77+L77-0.01","v":19244.260000000002},null,"V",{"$f":"+Q78+0.01","v":15039.359999999999},{"$f":"+M77","v":19244.260000000002}]
[null,null,"5-15 Derece","5-15 Dereceli Kadrolar",1000,{"$f":"$G$8","v":14.208727},{"$f":"FIXED(E78*F78,2,TRUE)","v":"14208,73"},915,0,{"$f":"H78+I78","v":915},{"$f":"$G$7","v":"0,907796"},{"$f":"FIXED(J78*K78,2,TRUE)","v":"830,63"},{"$f":"G78+L78-0.01","v":15039.349999999999},null,"VI",1,{"$f":"+M78","v":15039.349999999999}]

{"sheet":"Şerif","index":6,"n_rows":1,"n_cols":2,"rows_kept":1,"cut":false,"hidden":true,"merged":[]}
["Data sayfa koruması",561998]